Cogmind - Beta 10.2 @@@ ROGUE MODE // 2021.01.03 @ 21:42:50 Player: CrossedViper Result: Destroyed by 8R-AWN with 8R-AWN's Boregun Performance ------------- Evolutions (0) 0 Regions Visited (3) 600 Robots Destroyed (14) 70 Value Destroyed (128) 128 Prototype IDs (23) 460 Alien Tech Used (0) 0 Bonus (12) 12 TOTAL SCORE: 1270 Bonus ------- Aligned with FarCom 300 Friendly Fire -288 Cogmind --------- Core Integrity 0/250 Matter 235/300 Energy 100/100 System Corruption 0% Temperature Cool (0) Movement Core (300) Ox5 Location -10/Exiles Parts ------- > --- POWER (1) -------- (None) > --- PROPULSION (2) --- (None) > --- UTILITY (2) ------ Large Storage Unit > --- WEAPON (2) ------- Makeshift Spear > --- INVENTORY (10) --- Reinforced Deuterium Engine Reinforced Deuterium Engine Fission Core Large Storage Unit High-capacity Matter Pod (200) High-capacity Matter Pod (200) Peak State ------------ > --- POWER ------------ Light Ion Engine > --- PROPULSION ------- Light Treads > --- UTILITY ---------- Large Storage Unit Cloak of Protection > --- WEAPON ----------- Firepult > --- INVENTORY -------- Reinforced Deuterium Engine Reinforced Deuterium Engine Fission Core Large Storage Unit High-capacity Matter Pod High-capacity Matter Pod Makeshift Spear [Rating: 33] Favorites ----------- Power Light Ion Engine Engine Light Ion Engine Propulsion Light Treads Treads Light Treads Leg Aluminum Leg Utility Large Storage Unit Device Cloak of Protection Storage Large Storage Unit Weapon Light Assault Rifle Energy Gun Medium Laser Energy Cannon Firepult Ballistic Gun Light Assault Rifle Launcher Rocket Launcher Piercing Weapon Makeshift Spear Build | -11 -10 -10 -10 ------- Run | Scr Mat Min Exi Slots Evolved . | . . . . Power . | . . . . Propulsion . | . . . . Utility . | . . . . Weapon . | . . . . Parts Attached 13 | . 2 5 6 Power 1 | . . 1 . Engine 1 | . . 1 . Core . | . . . . Reactor . | . . . . Propulsion 2 | . . 2 . Treads 2 | . . 2 . Leg . | . . . . Wheel . | . . . . Hover . | . . . . Flight . | . . . . Utility 4 | . 2 . 2 Device 2 | . . . 2 Storage 2 | . 2 . . Processor . | . . . . Hackware . | . . . . Protection . | . . . . Artifact . | . . . . Weapon 6 | . . 2 4 Energy Gun 1 | . . 1 . Energy Cannon 1 | . . . 1 Ballistic Gun 1 | . . 1 . Ballistic Cannon . | . . . . Launcher 1 | . . . 1 Special Weapon . | . . . . Impact Weapon . | . . . . Slashing Weapon . | . . . . Piercing Weapon 2 | . . . 2 Special Melee Weapon . | . . . . Unidentified Prototypes . | . . . . Parts Lost 6 | . . 2 4 Power 1 | . . . 1 Propulsion 2 | . . . 2 Utility 1 | . . . 1 Weapon 2 | . . 2 . Highest Loss Streak 4 | . . 2 4 Average Slot Usage (%) 97 | . 87 100 97 Engine 13 | . 14 14 13 Treads 24 | . . 28 27 Leg 2 | . 28 . . Storage 25 | . 16 28 25 Energy Gun 16 | . 28 19 9 Ballistic Gun 9 | . . 8 13 Piercing Weapon 1 | . . . 3 Naked Turns . | . . . . Heaviest Build 49 | 11 39 39 49 Greatest Support 40 | 20 20 40 40 Greatest Overweight (x) 2 | . 1 . 2 Average Overweight (x) . | . . . . Largest Inventory Capacity 16 | 6 16 16 16 Average Capacity 14 | 6 7 16 15 Most Carried 16 | 6 7 7 16 Average Carried 7 | 6 6 4 11 Final Capacity 16 | 6 16 16 10 Final Carried 7 | 6 7 6 6 Class Distribution -------------------- 100% | Mutant Dominant Class ---------------- Mutant | -10/Materials Mutant | -10/Mines Mutant | -10/Exiles Resources | -11 -10 -10 -10 ----------- Run | Scr Mat Min Exi Matter Collected 316 | 154 . 122 40 Remotely . | . . . . Salvage Created 228 | . . 224 4 Parts 27 | . . 27 . Haulers Intercepted . | . . . . Recyclers Shooed . | . . . . Parts Field Recycled . | . . . . Retrieved Matter . | . . . . Parts Self-Destructed . | . . . . Prevented . | . . . . Kills | -11 -10 -10 -10 ------- Run | Scr Mat Min Exi Combat Hostiles Destroyed 18 | . . 12 6 Guns 12 | . . 12 . AOE 6 | . . . 6 Classes Destroyed 4 | . . 3 1 Worker 1 | . . 1 . Tunneler 1 | . . 1 . Swarmer 12 | . . 12 . Assembled 6 | . . . 6 Best Kill Streak 6 | . . 3 6 Combat Bots Only 6 | . . 3 6 Max Kills in Single Turn 3 | . . 2 3 Gunslinging 1 | . . 1 . Exploded 3 | . . . 3 Melee . | . . . . Uniques/NPCs Destroyed . | . . . . Combat | -11 -10 -10 -10 -------- Run | Scr Mat Min Exi Damage Taken 1123 | . . 408 715 Core 250 | . . 38 212 Absorbed by Shields . | . . . . Core Remaining (%) 100 | 100 . . . Volleys Fired 32 | . . 26 6 Largest 2 | . . 2 1 Hottest 250 | . . 100 250 Shots Fired 57 | . . 51 6 Gun 51 | . . 51 . Cannon 1 | . . . 1 Launcher 5 | . . . 5 Special . | . . . . Kinetic 6 | . . 6 . Thermal 46 | . . 45 1 Explosive 5 | . . . 5 Electromagnetic . | . . . . Robot Hit Streak 4 | . . 4 1 Robot Miss Streak 6 | . . 6 3 Penetration Max . | . . . . Secondary Targets 2 | . . 2 . Max Gunslinging Chain 1 | . . 1 . Shots Hit Robots 31 | . . 23 8 Core Hits 24 | . . 14 10 Critical Hits . | . . . . Critical Kills . | . . . . Critical Parts Destroyed . | . . . . Melee Attacks 10 | . . . 10 Impact . | . . . . Slashing . | . . . . Piercing 10 | . . . 10 Sneak Attacks 1 | . . . 1 Combat Hostiles . | . . . . Follow-up Attacks . | . . . . Damage Inflicted 824 | . . 272 552 Guns 272 | . . 272 . Cannons . | . . . . Explosions 271 | . . . 271 Melee 281 | . . . 281 Ramming . | . . . . Kinetic . | . . . . Thermal 305 | . . 272 33 Explosive 238 | . . . 238 Electromagnetic . | . . . . Impact . | . . . . Slashing . | . . . . Piercing 281 | . . . 281 Highest Corruption . | . . . . Average Corruption . | . . . . Corruption Purged . | . . . . Overload Shots . | . . . . Overflow Damage . | . . . . Projectiles . | . . . . Explosions . | . . . . Melee . | . . . . Knockbacks . | . . . . Impact . | . . . . Kinetic . | . . . . Secondary . | . . . . Self-Inflicted Damage 67 | . . . 67 Shots 2 | . . . 2 Rammed . | . . . . Targets Rammed . | . . . . Kicked . | . . . . Crushed . | . . . . Highest Temperature 273 | . . 273 210 Average Temperature 89 | . . 92 76 Received Heat Transfer 40 | . . . 40 Effects 1 | . . 1 . Energy Bleed 1 | . . 1 . Siege Activations . | . . . . Robots Corrupted . | . . . . Combat Hostiles . | . . . . Parts Fried . | . . . . Impact Corruptions . | . . . . Robots Melted . | . . . . Combat Hostiles . | . . . . Parts Melted 1 | . . 1 . Heat Transferred 1030 | . . 790 240 Parts Sabotaged . | . . . . Parts Stolen . | . . . . Parts Stripped . | . . . . Power Chain Reactions . | . . . . Missiles Intercepted . | . . . . Alert | -11 -10 -10 -10 ------- Run | Scr Mat Min Exi Peak Influence 304 | . 50 304 . Initial 19 | . . 19 . Average 116 | . 17 136 . Maximum Alert Level 1 | . . 1 . Low Security (%) 87 | 100 100 85 . Level 1 12 | . . 14 . Level 2 . | . . . . Level 3 . | . . . . Level 4 . | . . . . Level 5 . | . . . . High Security . | . . . . Max Security . | . . . . Squads Dispatched 2 | . 2 . . Investigation . | . . . . Extermination . | . . . . Reinforcement 2 | . 2 . . Assault . | . . . . Garrison . | . . . . Intercept . | . . . . Construction Impeded . | . . . . Haulers Reinforced . | . . . . Stealth | -11 -10 -10 -10 --------- Run | Scr Mat Min Exi Distress Signals . | . . . . Communications Jammed . | . . . . Distress Signals . | . . . . Times Spotted 23 | . 5 12 6 Peak Tracking Total 8 | . 3 3 8 Tactical Retreats . | . . . . Traps | -11 -10 -10 -10 ------- Run | Scr Mat Min Exi Traps Triggered . | . . . . Indirectly . | . . . . Trap Hack Attempts . | . . . . Triggered . | . . . . Disarmed . | . . . . Reprogrammed . | . . . . Reused . | . . . . Traps Extracted . | . . . . Installed . | . . . . Triggered . | . . . . Power Sources Rigged 2 | . . . 2 Exploded 2 | . . . 2 Machines | -11 -10 -10 -10 ---------- Run | Scr Mat Min Exi Machines Disabled 3 | . . . 3 Max in Single Turn 2 | . . . 2 Machines Sabotaged . | . . . . Garrisons Compromised . | . . . . Overloaded Fab Kills . | . . . . Fab Network Shutdowns . | . . . . Hacking | -11 -10 -10 -10 --------- Run | Scr Mat Min Exi Machines Accessed 5 | . 2 1 2 Terminals 3 | . 2 1 . Fabricators . | . . . . Repair Stations . | . . . . Recycling Units . | . . . . Scanalyzers . | . . . . Garrison Access . | . . . . Total Hacks 11 | . 4 5 2 Successful 9 | . 4 3 2 Failed 2 | . . 2 . Catastrophic . | . . . . Database Lockouts . | . . . . Manual 11 | . 4 6 1 Terminals 9 | . 4 5 . Fabricators . | . . . . Repair Stations . | . . . . Recycling Units . | . . . . Scanalyzers . | . . . . Garrison Access . | . . . . Terminal Hacks 6 | . 1 3 2 Record 1 | . . . 1 Robot Analysis 3 | . 1 2 . Branch Access Points 1 | . . 1 . EX-Prototype ID Bank 1 | . . . 1 Fabricator Hacks . | . . . . Repair Station Hacks . | . . . . Recycling Unit Hacks . | . . . . Scanalyzer . | . . . . Garrison Access Hacks . | . . . . Unauthorized Hacks 3 | . 3 . . Terminals 3 | . 3 . . Track 1 | . 1 . . Botnet 2 | . 2 . . Fabricators . | . . . . Repair Stations . | . . . . Recycling Units . | . . . . Scanalyzers . | . . . . Garrison Access . | . . . . Data Cores Recovered . | . . . . Used . | . . . . Hacking Detections 2 | . 2 . . Full Trace Events . | . . . . Feedback Events . | . . . . Feedback Blocked . | . . . . Robot Schematics Acquired . | . . . . Robots Built . | . . . . Matter . | . . . . Time . | . . . . Total Robot Build Rating . | . . . . Part Schematics Acquired . | . . . . Parts Built . | . . . . Matter . | . . . . Time . | . . . . Total Part Build Rating . | . . . . Parts Repaired . | . . . . Time . | . . . . Parts Recycled . | . . . . Recycled Matter . | . . . . Retrieved Matter . | . . . . Retrieved Components . | . . . . Parts Scanalyzed . | . . . . Part Schematics Acquired . | . . . . Parts Damaged . | . . . . Bothacking | -11 -10 -10 -10 ------------ Run | Scr Mat Min Exi Used RIF Installer . | . . . . Robots Hacked . | . . . . Non-combat . | . . . . Combat . | . . . . Robot Hacks Applied . | . . . . Relay Couplers Released . | . . . . Robots Rewired . | . . . . Allies Hacked . | . . . . Hacks Repelled . | . . . . Allies | -11 -10 -10 -10 -------- Run | Scr Mat Min Exi Total Allies . | . . . . Largest Group . | . . . . Highest-Rated Group . | . . . . Highest-Rated Ally . | . . . . Total Orders . | . . . . Ally Attacks . | . . . . Total Damage . | . . . . Kills . | . . . . Allies Corrupted . | . . . . Allies Melted . | . . . . Intel | -11 -10 -10 -10 ------- Run | Scr Mat Min Exi Robot Analysis Total 3 | . 1 2 . Derelict Logs Recovered . | . . . . Drone Launches . | . . . . Drone Recoveries . | . . . . Exploration | -11 -10 -10 -10 ------------- Run | Scr Mat Min Exi Turns Passed 1756 | 3 166 829 758 Spaces Moved 1035 | 3 133 464 435 Core . | . . . . Treads 899 | . . 464 435 Legs 136 | 3 133 . . Wheels . | . . . . Hover . | . . . . Flight . | . . . . Fastest Speed 120 | 120 120 160 160 Average Speed 155 | 120 123 160 160 Slowest Speed 200 | 120 150 160 200 Overloaded Moves . | . . . . Propulsion Burnouts . | . . . . Robots Hopped . | . . . . Cave-ins Triggered . | . . . . Exploration Rate (%) 45 | 2 29 81 68 Regions Visited 3 Branch Regions 2 Pre-discovered Areas 1 | . . . 1 Known Exits Taken . | . . . . Unknown Exits Taken 3 | 1 1 1 . Scrap Searched 1 | . . 1 . Spaces Dug . | . . . . Terrain Destroyed 28 | . . . 28 Melee . | . . . . Projectile . | . . . . AOE 28 | . . . 28 Terrain Rammed . | . . . . Walls Destroyed . | . . . . Machines Disabled . | . . . . Actions | -11 -10 -10 -10 --------- Run | Scr Mat Min Exi Total 1123 | 2 134 502 485 Wait 1 | . . 1 . Move 1032 | 2 132 463 435 Hop . | . . . . Pick Up 17 | . . 3 14 Fast Attach 3 | . 1 1 1 Attach 7 | . . 3 4 Detach . | . . . . Swap 3 | . 1 1 1 Drop 16 | . . 4 12 Fire 32 | . . 26 6 Melee 10 | . . . 10 Ram . | . . . . Kick . | . . . . Crush . | . . . . Escape Stasis . | . . . . Rewire . | . . . . Trap 2 | . . . 2 Miscellaneous . | . . . . Route ------- -11/Scrapyard -10/Materials -10/Mines (discovered 3 exits: [*Mat x2] / *Exi) -10/Exiles History --------- Turn | Location | Event 1 | -11/Scrapyard | Discovered new exit (range 1) 4 | -11/Scrapyard | Entered Materials 124 | -10/Materials | Discovered new exit (range 7) 170 | -10/Materials | Entered Mines 252 | -10/Mines | Discovered new exit (range 14) 309 | -10/Mines | Build established: Mutant 508 | -10/Mines | Received a Rocket Launcher from a helpful Derelict 549 | -10/Mines | Discovered new exit (range 13) 714 | -10/Mines | A weapon hastily lodged in a ceiling crevice suddenly fell to the ground 898 | -10/Mines | Deemed a non-threat by the Exiles lab entrance 898 | -10/Mines | Discovered new exit (range 5) 999 | -10/Mines | Entered Exiles 1041 | -10/Exiles | Met 8R-AWN 1074 | -10/Exiles | Met EX-HEX 1121 | -10/Exiles | Met EX-BIN 1142 | -10/Exiles | Aligned with FarCom system 1143 | -10/Exiles | Given EX-Vault access code 1198 | -10/Exiles | Learned location of Zion (-6) 1345 | -10/Exiles | Met EX-DEC 1501 | -10/Exiles | Opened EX-Vault 1512 | -10/Exiles | Found Cloak of Protection 1515 | -10/Exiles | Found Firepult 1525 | -10/Exiles | Found PSU Rigger 1561 | -10/Exiles | Warned to stay clear of 0b10 Research branches 1719 | -10/Exiles | Attacked by the Exiles 1749 | -10/Exiles | Core integrity fell below 50% 1755 | -10/Exiles | Core integrity fell below 20% 1757 | -10/Exiles | Destroyed by 8R-AWN with 8R-AWN's Boregun Last Messages --------------- 01736_ HV Slug penetrates Earth. 01739_ Penetrated by HV Slug. 01739_ Lgt. Treads destroyed. 01739_ Penetrated by HV Slug. 01739_ Dropped Firepult. 01741_ Penetrated by HV Slug. 01743_ HV Slug penetrates Machine. 01744_ The unstable cave ceiling collapses. 01745_ Penetrated by HV Slug. 01745_ Critical hit. 01745_ Cloak of Protection destroyed. 01745_ HV Slug penetrates Earth. 01745_ Penetrated by HV Slug. 01745_ Critical hit. 01745_ Lgt. Ion Engine destroyed. 01748_ Penetrated by HV Slug. 01750_ HV Slug penetrates Wall. 01750_ Penetrated by HV Slug. 01750_ HV Slug penetrates Wall. 01752_ Penetrated by HV Slug. Map ----- +----------------------------------------------------+ | """#?????????????????????????????????????????????? | | """#?????????????????????????????????????????????? | | """#?????????????????????????????????????????????? | | """#?????????????????????????????????????????????? | | """#?????????????????????????????????????????????? | | """#?????????????????????????????????????????????? | | """#?????????????????????????????????????????????? | | """#?????????????????????????????????????????????? | | """#?????????????????????????????????????????????? | | """"?????????????????????????????????????????????? | | """#?????????????????????????????????????????????? | | """"?????????????????????????????????????????????? | | #?????????????????????????????????????????????? | | """#?????????????????????????????????????????????? | | ####?????????????????????????????????????????????? | | ?????????????????????????????????????????????????? | | ?????????????????????????????????????????????????? | | ?????????????????????????????????????????????????? | | ##########????????????????????????????????????? ?? | | """""""""##??????????????????????????????????? | | " """ """"##?????????????????????????????????# # | | "" " #????????????????????????????????# # | | " """#??????????????##???????????????# | | " "#?????????##### ##??????????????# | | " "##???????## g #?????????????## | | ""###?????# @ #????????????## #? | | """#?????# ][ #????????????# #? | | "#????# ###????????### #?? | | ##?# ########## #?? | | ! # #""""## #??? | | !! ##?? | | ] #?? | | ! #;# ##? | | ##; " ""#### ## | | " ##;######??#### | | #####?? ???????????##### | | #??????? ???????????????### | | " ##???????? ?????????????????### | | """ * * ""#????????? ???????????????????### | | ""#" "##????????? ????????????????????#" | | """##"""""""##?????????? ????????????????????#### | | """###########???????????????????????????????????# | | ####?????????????????????????????????????????????# | | ?????????????????????????????????????????????????? | | ?????????????????????????????????????????????????? | | ?????????????????????????????????????????????????? | | ?????????????????????????????????????????????????? | | ?????????????????????????????????????????????????? | | ?????????????????????????????????????????????????? | | ?????????????????????????????????????????????????? | +----------------------------------------------------+ Best States ------------- Heat Dissipation 25 Energy Generation 10 Energy Capacity 125 Matter Stores 300 Matter Capacity 300 Sight Range 16 Terrain Scan Density 10 Evasion (%) 40 Recoil Reduction 2 Item Schematics ----------------- None Robot Schematics ------------------ None Fabricated ------------ Nothing Alien Tech Used ----------------- None Achievements -------------- None Challenges ------------ None Game ------ Seed GravitonCoilProcessor Manual? 0 Play Time 00:08:33 Cumulative 212.2 hours Start 2021.01.03 @ 21:33:16 End 2021.01.03 @ 21:42:50 Sessions 1 Manual Loads 0 Difficulty Rogue Special Mode None Game No. 194 Rogue 187 Adventurer 0 Explorer 7 Win Type - Total 5 Types 1/0/4/0/0/0/0/0/0 Lore% 68 Gallery% 90 Achievement% 69 Wizard Run 0 Options --------- ASCII 0 Keyboard 0 Movement Mouse Keybinds 0 Fullscreen 1 Font 18/X11 Map View 76x50 Tactical HUD 1 Map Filters NONE Filters NONE Steam 1 RUN: 59fad48b-6549-459f-a852-94fd2a6b2492